bitfinex-derivatives/quotes_ETHF0:USTF0_20250708
["timestamp","ask_amount","ask_price","bid_price","bid_amount"]
[1751971932890,37.09331321,2564.0,2563.9,2.12072]
[1751971933297,37.87330321,2564.0,2563.9,2.12072]
[1751971933501,37.20210321,2564.0,2563.9,2.12072]
[1751971933700,37.87330321,2564.0,2563.9,2.12072]
[1751971934196,37.20210321,2564.0,2563.9,2.12072]
[1751971934500,36.42211321,2564.0,2563.9,2.12072]
[1751971934702,37.09331321,2564.0,2563.9,2.12072]
[1751971934999,37.87330321,2564.0,2563.9,2.12072]
[1751971935396,10.42931321,2564.0,2563.9,5.23326331]
[1751971935601,34.925,2564.0,2563.9,5.23326331]
[1751971937797,8.264,2564.0,2563.9,5.23326331]
[1751971938095,34.924,2564.0,2563.9,5.23326331]
[1751971938500,0.77992,2564.3,2564.2,0.77993]
[1751971938703,28.93204618,2564.3,2564.2,1.42183]
[1751971938896,29.60324618,2564.3,2564.2,1.42183]
[1751971939203,29.60324618,2564.3,2564.2,2.12193]
[1751971939609,28.93204618,2564.3,2564.2,2.12193]
[1751971939902,29.60324618,2564.3,2564.2,2.12193]
[1751971940500,2.17072618,2564.3,2564.2,2.12193]
[1751971940696,1.49312618,2564.3,2564.2,3.09363]
[1751971940900,26.658,2564.3,2564.2,3.09363]
[1751971941198,0.77988,2564.4,2564.3,0.7799]
[1751971941400,9.03987,2564.5,2564.4,0.77987]
[1751971941599,37.1894519,2564.5,2564.4,0.77987]
[1751971941801,37.8670519,2564.5,2564.4,0.77987]
[1751971942305,37.1894519,2564.5,2564.4,0.77987]
[1751971942604,39.2614519,2564.5,2564.4,1.45907]
[1751971942998,39.2614519,2564.5,2564.4,0.77987]
[1751971943195,39.2614519,2564.5,2564.4,1.45907]
[1751971945005,39.2614519,2564.5,2564.4,0.6792]
[1751971945304,4.3434519,2564.5,2564.4,1.45907]
[1751971945597,39.2584519,2564.5,2564.4,1.45907]
[1751971946806,4.3434519,2564.5,2564.4,1.45907]
[1751971947006,37.76587,2564.5,2564.4,1.45907]
[1751971947206,39.25584774,2564.5,2564.4,1.45907]
[1751971948007,39.25595173,2564.5,2564.4,1.45907]
[1751971948306,36.40311173,2564.5,2564.4,2.45117]
[1751971949006,34.913,2564.5,2564.4,2.45117]
[1751971949206,34.913,2564.5,2564.4,5.65897]
[1751971949609,0.77983,2564.6,2564.5,0.77984]
[1751971949908,29.60342392,2564.6,2564.5,1.45904]
[1751971950206,29.60342392,2564.6,2564.5,0.77984]
[1751971950804,30.92772392,2564.6,2564.5,0.77984]
[1751971951707,0.77984,2564.5,2564.4,3.98765]
[1751971951903,1.45744,2564.5,2564.4,4.66685]
[1751971952109,1.45744,2564.5,2564.4,3.98765]
[1751971952708,2.45454,2564.5,2564.4,3.98767]
[1751971952904,0.7799,2564.4,2564.3,0.77988]
[1751971953208,30.22133659,2564.4,2564.3,0.77988]
[1751971955103,0.7799,2564.3,2564.2,1.48002]
[1751971955308,0.7799,2564.3,2564.2,0.77993]
[1751971955511,2.0776,2564.3,2564.2,0.77993]
[1751971956011,2.0776,2564.3,2564.2,1.45913]
[1751971956410,2.7552,2564.3,2564.2,0.77993]
[1751971956612,0.77993,2564.2,2564.1,3.98774]
[1751971956812,28.74183,2564.2,2564.1,3.98774]
[1751971957011,28.74183,2564.2,2564.1,4.66694]
[1751971958311,29.41943,2564.2,2564.1,4.66694]
[1751971959112,29.41943,2564.2,2564.1,4.66696]
[1751971959315,0.78002,2564.0,2563.9,0.77998]
[1751971959613,28.10462,2564.0,2563.9,1.45918]
[1751971960513,27.3246,2564.0,2563.9,1.45918]
[1751971960711,28.10459,2564.0,2563.9,1.45918]
[1751971961413,28.10459,2564.0,2563.9,0.77998]
[1751971961623,29.10169,2564.0,2563.9,0.77998]
[1751971962216,28.82689,2564.0,2563.9,0.77998]
[1751971962415,29.50449,2564.0,2563.9,1.45918]
[1751971962913,28.7245,2564.0,2563.9,1.45918]
[1751971963216,26.647,2564.0,2563.9,1.45918]
[1751971963617,27.42699,2564.0,2563.9,1.45918]
[1751971963917,28.10459,2564.0,2563.9,1.45918]
[1751971964219,0.78008,2563.8,2563.7,0.78005]
[1751971964412,28.10368,2563.8,2563.7,1.45925]
[1751971965013,1.3999,2564.1,2563.9,0.77999]
[1751971965217,9.03596,2564.1,2564.0,2.92083331]
[1751971965414,37.85394799,2564.1,2564.0,3.59353331]
[1751971968721,37.85394799,2564.1,2564.0,5.26483331]
[1751971968923,37.17634799,2564.1,2564.0,5.26483331]
[1751971969114,37.85394799,2564.1,2564.0,5.26483331]
[1751971969621,1.49438799,2564.1,2564.0,5.26483331]
[1751971969822,27.3946,2564.1,2564.0,5.26483331]
[1751971970023,28.88951137,2564.1,2564.0,5.26483331]
[1751971970724,27.3946,2564.1,2564.0,5.26483331]
[1751971971925,26.717,2564.1,2564.0,3.59353331]
[1751971972425,26.717,2564.1,2564.0,5.28473331]
[1751971972916,0.77989,2564.4,2564.3,0.7799]
[1751971973222,37.91634299,2564.4,2564.3,1.4298]
[1751971973422,37.24484299,2564.4,2564.3,1.4298]
[1751971973621,36.46495299,2564.4,2564.3,1.4298]
[1751971973925,37.91132299,2564.4,2564.3,1.4298]
[1751971974224,2.94632299,2564.4,2564.3,1.4298]
[1751971974425,37.12845299,2564.4,2564.3,1.4298]
[1751971975227,10.42245299,2564.4,2564.3,1.4298]
[1751971975423,37.12845299,2564.4,2564.3,1.4298]
[1751971975624,37.12845299,2564.4,2564.3,2.0944]
[1751971976019,37.12345299,2564.4,2564.3,3.1357]
[1751971976427,37.90332299,2564.4,2564.3,2.0944]
[1751971976627,37.12345299,2564.4,2564.3,2.0944]
[1751971976826,10.42245299,2564.4,2564.3,2.0944]
[1751971977026,37.12145299,2564.4,2564.3,2.0944]
[1751971979627,37.90132299,2564.4,2564.3,2.0944]
[1751971979826,37.12145299,2564.4,2564.3,2.0944]
[1751971980432,37.90132299,2564.4,2564.3,2.0944]
[1751971981134,37.12145299,2564.4,2564.3,2.0944]
[1751971982133,36.44995299,2564.4,2564.3,2.0944]
[1751971982334,36.44995299,2564.4,2564.3,1.4445]
[1751971982537,37.12145299,2564.4,2564.3,2.0944]
[1751971982740,37.12145299,2564.4,2564.2,3.9877]
[1751971982931,1.49495299,2564.3,2564.2,0.7799]
[1751971983231,2.16645299,2564.3,2564.2,0.7799]
[1751971984026,6.5090963,2564.3,2563.9,3.2078]
[1751971984230,0.77999,2564.0,2563.9,1.42689]
[1751971984432,0.77999,2564.1,2564.0,0.77996]
[1751971984629,29.44809,2564.1,2564.0,0.77996]
[1751971984828,30.94067997,2564.1,2564.0,0.77996]
[1751971985238,30.26917997,2564.1,2564.0,1.42986]
[1751971985439,28.16958997,2564.1,2564.0,1.42986]
[1751971985631,28.84108997,2564.1,2564.0,1.42986]
[1751971985937,28.16958997,2564.1,2564.0,1.42986]
[1751971986136,28.84108997,2564.1,2564.0,1.42986]
[1751971987644,29.62104997,2564.1,2564.0,1.42986]
[1751971987836,28.84108997,2564.1,2564.0,1.42986]
[1751971988638,29.62104997,2564.1,2564.0,1.42986]
[1751971990241,28.84108997,2564.1,2564.0,1.42986]
[1751971990942,28.84108997,2564.1,2564.0,2.47116]
[1751971991141,2.16408997,2564.1,2564.0,2.47116]
[1751971991341,28.82908997,2564.1,2564.0,2.47116]
[1751971992042,28.15758997,2564.1,2564.0,2.47116]
[1751971992242,28.82908997,2564.1,2564.0,2.47116]
[1751971992540,28.15758997,2564.1,2564.0,0.77996]
[1751971992742,28.82908997,2564.1,2564.0,2.47116]
[1751971993242,28.93754997,2564.1,2564.0,2.47116]
[1751971993445,1.49258997,2564.1,2564.0,2.47116]
[1751971993636,9.03591,2564.3,2564.2,0.77993]
[1751971993842,1.49369913,2564.3,2564.2,3.98773]
[1751971994146,29.60109913,2564.3,2564.2,5.67893]
[1751971994351,29.60109913,2564.3,2564.2,6.34283]
[1751971994648,28.82119913,2564.3,2564.2,6.34283]
[1751971995642,29.60109913,2564.3,2564.2,6.34283]
[1751971996045,28.82119913,2564.3,2564.2,6.34283]
[1751971996245,29.60109913,2564.3,2564.2,6.34283]
[1751971996446,29.60109913,2564.3,2564.2,3.13503]
[1751971996947,29.60109913,2564.3,2564.2,3.98773]
[1751971997146,30.94459913,2564.3,2564.2,4.63763]
[1751971998650,30.94459913,2564.3,2564.2,3.98773]
[1751971998946,30.94459913,2564.3,2564.2,0.77993]
[1751971999248,0.77996,2564.2,2564.0,1.7388]
[1751971999542,28.92365913,2564.1,2564.0,3.16869]
[1751972000048,29.59515913,2564.1,2564.0,2.12739]
[1751972001044,29.59515913,2564.1,2564.0,1.47749]
[1751972001343,30.92915913,2564.1,2564.0,1.47749]
[1751972001946,30.25765913,2564.1,2564.0,1.47749]
[1751972002345,30.90045913,2564.1,2564.0,2.15219]
[1751972002548,30.25765913,2564.1,2564.0,1.47749]
[1751972002848,30.90045913,2564.1,2564.0,1.45469]
[1751972003949,30.25765913,2564.1,2564.0,0.77999]
[1751972004247,30.90045913,2564.1,2564.0,1.45469]
[1751972004447,0.77999,2564.0,2563.9,0.78]
[1751972004749,2.91648913,2564.0,2563.9,0.78]
[1751972004945,3.63698913,2564.0,2563.9,0.78]
[1751972005245,4.27978913,2564.0,2563.9,0.78]
[1751972005749,4.27978913,2564.0,2563.9,1.4547]
[1751972006149,3.49979913,2564.0,2563.9,1.4547]
[1751972006351,4.27978913,2564.0,2563.9,1.4547]
[1751972006851,3.49979913,2564.0,2563.9,1.4547]
[1751972008251,3.49979913,2564.0,2563.9,0.78]
[1751972008450,4.27978913,2564.0,2563.9,0.78]
[1751972008646,0.78002,2563.9,2563.8,0.78003]
[1751972008851,0.7801,2563.7,2563.6,0.78008]
[1751972009151,29.56659913,2563.7,2563.6,1.45478]
[1751972009343,0.78011,2563.6,2563.5,4.65493]
[1751972009549,1.42291,2563.6,2563.5,5.32963]
[1751972009752,2.74381,2563.6,2563.5,5.32963]
[1751972009948,4.24257975,2563.6,2563.5,5.32963]
[1751972010353,2.14156975,2563.6,2563.5,5.32963]
[1751972010553,0.6428,2563.6,2563.5,5.32963]
[1751972011850,0.6428,2563.6,2563.5,6.34793]
[1751972012049,27.43011,2563.7,2563.6,0.78011]
[1751972012248,28.92825337,2563.7,2563.6,0.78011]
[1751972012448,29.57105337,2563.7,2563.6,1.45481]
[1751972012649,28.92825337,2563.7,2563.6,1.45481]
[1751972013252,27.43011,2563.7,2563.6,1.45481]
[1751972013451,28.07291,2563.7,2563.6,1.45481]
[1751972013955,28.07291,2563.7,2563.6,0.78011]
[1751972014159,29.41141,2563.7,2563.6,0.78011]
[1751972014656,27.2928,2563.7,2563.6,1.45481]
[1751972015956,27.2928,2563.7,2563.6,2.47311]
[1751972016860,27.2958,2563.7,2563.6,2.47311]
[1751972017056,27.2958,2563.7,2563.6,3.75231]
[1751972017754,26.653,2563.7,2563.6,3.75231]
[1751972020453,26.653,2563.7,2563.6,2.47311]
[1751972020650,28.07588,2563.7,2563.6,2.47311]
[1751972021056,27.2958,2563.7,2563.6,2.47311]
[1751972021455,27.2958,2563.7,2563.6,1.45481]
[1751972022157,26.653,2563.7,2563.6,0.78011]
[1751972022361,26.653,2563.7,2563.6,2.47311]
[1751972023263,0.78002,2564.0,2563.7,1.95022]
[1751972023462,0.78002,2564.0,2563.9,1.45466]
[1751972023764,28.93001271,2564.0,2563.9,1.45466]
[1751972024063,28.79279271,2564.0,2563.9,1.45466]
[1751972024264,2.14079271,2564.0,2563.9,2.47296]
[1751972024465,0.6428,2564.0,2563.9,2.47296]
[1751972024664,0.77995,2564.2,2564.1,0.77996]
[1751972024861,29.57279094,2564.2,2564.1,1.45466]
[1751972025058,29.57279094,2564.2,2564.1,2.47296]
[1751972025262,29.57279094,2564.2,2564.1,3.12826]
[1751972025666,29.57279094,2564.2,2564.1,2.10996]
[1751972025965,28.79284094,2564.2,2564.1,2.10996]
[1751972026158,29.57277094,2564.2,2564.1,2.10996]
[1751972026756,1.49804094,2564.2,2564.1,6.33606]
[1751972026958,28.14904094,2564.2,2564.1,6.33606]
[1751972027268,1.49804094,2564.2,2564.1,6.33606]
[1751972027667,9.03687,2564.4,2564.3,0.7799]
[1751972027867,37.18577432,2564.4,2564.3,1.4546]
[1751972028065,37.82857432,2564.4,2564.3,1.4546]
[1751972028861,10.39770432,2564.4,2564.3,1.4546]
[1751972029065,37.82757432,2564.4,2564.3,1.4546]
[1751972030770,37.82757432,2564.4,2564.3,0.6747]
[1751972031765,37.82757432,2564.4,2564.3,1.4546]
[1751972031967,37.18477432,2564.4,2564.3,0.7799]
[1751972032367,37.83837432,2564.4,2564.3,1.4664]
[1751972032676,37.18477432,2564.4,2564.3,1.4664]
[1751972032876,37.83837432,2564.4,2564.3,1.4664]
[1751972033776,37.05650432,2564.4,2564.3,2.4899]
[1751972034774,37.83637432,2564.4,2564.3,2.4899]
[1751972036776,37.18277432,2564.4,2564.3,1.4664]
[1751972036976,37.83637432,2564.4,2564.3,1.4664]
[1751972037172,37.18277432,2564.4,2564.3,1.4664]
[1751972037373,37.83637432,2564.4,2564.3,1.4664]
[1751972038086,37.83637432,2564.4,2564.3,2.4899]
[1751972039186,10.40850432,2564.4,2564.3,2.4899]
[1751972039387,35.5566,2564.4,2564.3,2.4899]
[1751972039790,36.33647,2564.4,2564.3,2.4899]
[1751972040187,34.903,2564.4,2564.3,2.4899]
[1751972040387,35.68287,2564.4,2564.3,2.4899]
[1751972041085,36.33647,2564.4,2564.3,2.4899]
[1751972041286,35.68287,2564.4,2564.3,2.4899]
[1751972041790,28.07847,2564.4,2564.3,2.4899]
[1751972042289,27.42487,2564.4,2564.3,2.4899]
[1751972043589,0.77987,2564.5,2564.4,0.77984]
[1751972043790,27.42487,2564.5,2564.4,0.77984]
[1751972043990,28.07847,2564.5,2564.4,1.46634]
[1751972044391,1.43347,2564.5,2564.4,2.48984]
[1751972044690,28.07847,2564.5,2564.4,2.48984]
[1751972047392,27.42487,2564.5,2564.4,0.77984]
[1751972047593,27.42487,2564.5,2564.4,2.48984]
[1751972047893,28.07847,2564.5,2564.4,2.48984]
[1751972048089,27.42487,2564.5,2564.4,2.48984]
[1751972048391,28.07847,2564.5,2564.4,2.48984]
[1751972049393,28.07847,2564.5,2564.4,1.46634]
[1751972050300,29.57696812,2564.5,2564.4,1.46634]
[1751972051898,28.92336812,2564.5,2564.4,0.77984]
[1751972052195,29.57696812,2564.5,2564.4,1.46634]
[1751972052395,28.92336812,2564.5,2564.4,1.46634]
[1751972052596,28.92336812,2564.5,2564.4,0.77984]
[1751972052895,28.92336812,2564.5,2564.4,1.46634]
[1751972053292,29.57696812,2564.5,2564.4,1.46634]
[1751972053493,29.57696812,2564.5,2564.4,2.48984]
[1751972054390,2.15209812,2564.5,2564.4,2.48984]
[1751972054596,1.49849812,2564.5,2564.4,4.63068331]
[1751972054796,28.13849812,2564.5,2564.4,4.63068331]
[1751972058095,1.49849812,2564.5,2564.4,4.63068331]
[1751972058292,64.433,2564.7,2564.6,0.77981]
[1751972058496,92.57216331,2564.7,2564.6,5.69761]
[1751972058695,65.93316331,2564.7,2564.6,7.83845331]
[1751972058896,91.071,2564.7,2564.6,7.83845331]
[1751972059099,92.57102041,2564.7,2564.6,7.83845331]
[1751972059403,82.815,2564.7,2564.6,7.83845331]
[1751972060602,56.177,2564.7,2564.6,7.83845331]
[1751972060900,82.815,2564.7,2564.6,7.83845331]
[1751972061993,82.815,2564.7,2564.6,6.12845331]
[1751972062198,82.815,2564.7,2564.6,7.82985331]
[1751972062500,82.815,2564.7,2564.6,6.12845331]
[1751972062704,82.815,2564.7,2564.6,7.77965331]
[1751972063501,10.31599,2565.0,2564.9,0.77972]
[1751972063693,38.45060794,2565.0,2564.9,1.45762]
[1751972063899,39.15160794,2565.0,2564.9,1.45762]
[1751972064097,38.45060794,2565.0,2564.9,1.45762]
[1751972064300,39.15160794,2565.0,2564.9,1.45762]
[1751972065102,3.48191794,2565.0,2564.9,1.45762]
[1751972065402,28.83461794,2565.0,2564.9,5.63872]
[1751972065900,1.9912,2565.3,2565.1,0.77966]
[1751972065901,8.253,2565.2,2565.1,0.77966]
[1751972066101,2.19913378,2565.2,2565.1,2.43086]
[1751972066303,28.83313378,2565.2,2565.1,2.43086]
[1751972066701,27.335,2565.2,2565.1,2.43086]
[1751972067205,27.335,2565.2,2565.1,4.57170331]
[1751972067903,28.83218221,2565.2,2565.1,4.57170331]
[1751972068105,28.83218221,2565.2,2565.1,2.43086]
[1751972069102,28.82918221,2565.2,2565.1,1.45756]
[1751972069505,27.332,2565.2,2565.1,1.45756]
[1751972070006,28.11163,2565.2,2565.1,1.45756]
[1751972070604,28.11163,2565.2,2565.1,0.77966]
[1751972071305,28.11163,2565.2,2565.1,1.45756]
[1751972071704,28.80093,2565.2,2565.1,1.45756]
[1751972071906,28.09993,2565.2,2565.1,0.77966]
[1751972072103,28.80093,2565.2,2565.1,1.45756]
[1751972072406,28.0213,2565.2,2565.1,0.77966]
[1751972072706,28.0213,2565.2,2565.1,1.45756]
[1751972073410,28.80093,2565.2,2565.1,1.45756]
[1751972079215,28.80093,2565.2,2565.1,0.6779]
[1751972079712,28.80093,2565.2,2565.1,1.45756]
[1751972081913,28.09993,2565.2,2565.1,0.77966]
[1751972082109,28.0213,2565.2,2565.1,1.45756]
[1751972082305,28.80093,2565.2,2565.1,1.45756]
[1751972082510,28.09993,2565.2,2565.1,0.77966]
[1751972082710,28.80093,2565.2,2565.1,1.45756]
[1751972083917,28.09993,2565.2,2565.1,1.45756]
[1751972084106,28.80093,2565.2,2565.1,1.45756]
[1751972087017,30.94177331,2565.2,2565.1,1.45756]
[1751972087218,32.43941372,2565.2,2565.1,1.45756]
[1751972087920,29.60927041,2565.2,2565.1,1.45756]
[1751972090722,31.75011372,2565.2,2565.1,1.45756]
[1751972091525,31.75011372,2565.2,2565.1,0.77966]
[1751972091718,29.60927041,2565.2,2565.1,1.45546]
[1751972091922,29.56907041,2565.2,2565.1,1.45546]
[1751972092122,28.90827041,2565.2,2565.1,1.45546]
[1751972092523,29.56907041,2565.2,2565.1,0.77966]
[1751972092724,28.90827041,2565.2,2565.1,1.45546]
[1751972092924,29.56907041,2565.2,2565.1,1.45546]
[1751972095726,29.56907041,2565.2,2565.1,2.11346]
[1751972100431,2.15844041,2565.2,2565.1,2.11346]
[1751972100634,28.11464041,2565.2,2565.1,5.23840331]
[1751972101231,28.11464041,2565.2,2565.1,6.53720331]
[1751972101834,1.49764041,2565.2,2565.1,6.53720331]
[1751972102335,56.168,2565.5,2565.4,0.77957]
[1751972102532,82.784,2565.5,2565.4,7.78811331]
[1751972103739,9.0275,2565.7,2565.6,0.77951]
[1751972103938,27.2748,2565.7,2565.6,4.58025331]
[1751972104436,10.5841946,2565.9,2565.6,4.58025331]
[1751972104437,10.5841946,2565.9,2565.8,0.77945]
[1751972104638,8.248,2565.9,2565.8,4.58019331]
[1751972104837,0.16637,2566.2,2566.1,0.77936]
[1751972105138,26.77937,2566.2,2566.1,7.78790331]
[1751972106037,0.16637,2566.2,2566.1,7.78790331]
[1751972106238,26.77937,2566.2,2566.1,7.78790331]
[1751972107840,29.58101331,2566.2,2566.1,3.8836]
[1751972108140,0.77938,2566.1,2566.0,0.77936]
[1751972108641,0.77939,2566.0,2565.9,1.44699]
[1751972108840,29.52923331,2566.0,2565.9,2.12279]
[1751972109636,27.38839,2566.0,2565.9,2.12279]
[1751972110039,27.2698,2566.0,2565.9,2.12279]
[1751972110243,0.16637,2566.2,2566.1,0.77936]
[1751972110442,27.43517,2566.2,2566.1,0.77936]
[1751972110637,26.77437,2566.2,2566.1,0.77936]
[1751972110944,27.43517,2566.2,2566.1,0.77936]
[1751972111345,28.21449,2566.2,2566.1,0.77936]
[1751972111642,27.55369,2566.2,2566.1,1.45516]
[1751972111844,28.21449,2566.2,2566.1,1.45516]
[1751972112042,27.55369,2566.2,2566.1,2.43926]
[1751972112238,27.43517,2566.2,2566.1,2.43926]
[1751972112434,26.77437,2566.2,2566.1,2.43926]
[1751972112642,27.55369,2566.2,2566.1,1.45516]
[1751972112945,28.21449,2566.2,2566.1,1.45516]
[1751972113245,27.55369,2566.2,2566.1,1.45516]
[1751972114446,28.21449,2566.2,2566.1,0.77936]
[1751972114646,27.55369,2566.2,2566.1,1.45516]
[1751972114939,29.69453331,2566.2,2566.1,0.6758]
[1751972115145,0.77939,2566.0,2565.9,1.447]
[1751972115346,30.18503331,2566.0,2565.9,0.7794]
[1751972115542,26.604,2566.0,2565.9,1.4552]
[1751972115940,27.2648,2566.0,2565.9,1.4552]
[1751972116147,26.604,2566.0,2565.9,1.4552]
[1751972116650,27.2648,2566.0,2565.9,1.4552]
[1751972117849,27.2648,2566.0,2565.9,2.4393]
[1751972119551,28.04419,2566.0,2565.9,1.4552]
[1751972120453,27.2648,2566.0,2565.9,1.4552]
[1751972121253,28.04419,2566.0,2565.9,1.4552]
[1751972121956,28.07409,2566.0,2565.9,1.4229]
[1751972122254,28.07409,2566.0,2565.9,0.7794]
[1751972122446,29.35309,2566.0,2565.9,0.7794]
[1751972122848,27.2947,2566.0,2565.9,1.4229]
[1751972123249,27.2947,2566.0,2565.9,2.4419]
[1751972123645,26.604,2566.0,2565.9,2.4419]
[1751972124051,27.2947,2566.0,2565.9,2.4419]
[1751972124260,26.604,2566.0,2565.9,2.4419]
[1751972124458,27.2947,2566.0,2565.9,2.4419]
[1751972125858,28.07409,2566.0,2565.9,0.7794]
[1751972126156,29.43479,2566.0,2565.9,1.4229]
[1751972126758,29.43479,2566.0,2565.9,0.7794]
[1751972126959,29.43479,2566.0,2565.9,1.4229]
[1751972127159,29.43479,2566.0,2565.9,0.7794]
[1751972127361,28.6554,2566.0,2565.9,1.4229]
[1751972128562,30.1546082,2566.0,2565.9,1.4229]
[1751972129263,30.9339982,2566.0,2565.9,1.4229]
[1751972130365,30.1546082,2566.0,2565.9,1.4229]
[1751972130558,30.1546082,2566.0,2565.9,2.4419]
[1751972130759,28.7939082,2566.0,2565.9,2.4419]
[1751972131664,29.5732982,2566.0,2565.9,2.4419]
[1751972132063,28.8825982,2566.0,2565.9,2.4419]
[1751972132263,28.8825982,2566.0,2565.9,1.4229]
[1751972132663,28.1032082,2566.0,2565.9,1.4229]
[1751972133365,28.8825982,2566.0,2565.9,1.4229]
[1751972133967,29.5732982,2566.0,2565.9,0.7794]
[1751972134365,0.77945,2565.9,2565.8,0.77943]
[1751972134560,7.08740151,2565.9,2565.8,0.77943]
[1751972135264,7.08740151,2565.9,2565.8,1.42293]
[1751972135465,7.08740151,2565.9,2565.8,0.77943]
[1751972136463,0.77945,2565.8,2565.7,3.98726]
[1751972136664,0.77954,2565.6,2565.5,0.77952]
[1751972136860,31.70723271,2565.6,2565.5,0.77952]
[1751972137360,0.77963,2565.2,2565.1,3.2078]
[1751972137565,0.77963,2565.2,2565.1,0.6435]
[1751972137566,30.20517331,2565.2,2565.1,0.6435]
[1751972137869,30.20517331,2565.2,2565.0,0.77967]
[1751972137870,0.77966,2565.1,2565.0,0.77967]
[1751972138170,29.51449331,2565.2,2565.1,0.77966]
[1751972138360,28.09536721,2565.2,2565.1,1.42316]
[1751972138561,28.09536721,2565.2,2565.1,4.58300331]
[1751972139066,28.09536721,2565.2,2565.1,2.44216]
[1751972139365,28.09536721,2565.2,2565.1,5.64996]
[1751972139560,1.50136721,2565.2,2565.1,5.64996]
[1751972139762,1.50136721,2565.2,2565.1,7.79080331]
[1751972139964,28.09736721,2565.2,2565.1,7.79080331]
[1751972140165,26.596,2565.2,2565.1,7.79080331]
[1751972142169,26.596,2565.2,2565.1,6.12830331]
[1751972142569,26.596,2565.2,2565.1,7.79080331]
[1751972144870,27.37563,2565.2,2565.1,7.79080331]
[1751972145270,26.596,2565.2,2565.1,7.79080331]
[1751972146167,27.37563,2565.2,2565.1,7.79080331]
[1751972146367,26.596,2565.2,2565.1,7.79080331]
[1751972148069,0.77962,2565.3,2565.2,0.77963]
[1751972148273,0.6907,2565.3,2565.2,2.44213]
[1751972148476,8.243,2565.5,2565.4,0.77954]
[1751972148676,37.0283607,2565.5,2565.4,1.42304]
[1751972149475,37.8079407,2565.5,2565.4,1.42304]
[1751972151176,2.9699407,2565.5,2565.4,1.42304]
[1751972151378,2.1903607,2565.5,2565.4,2.44204]
[1751972151572,37.0253607,2565.5,2565.4,2.44204]
[1751972151773,36.30524,2565.5,2565.4,2.44204]
[1751972151974,34.835,2565.5,2565.4,0.77954]
[1751972152373,35.5135,2565.5,2565.4,2.48024]
[1751972152776,0.7796,2565.3,2565.2,0.6888]
[1751972153076,28.0531,2565.3,2565.2,1.3856]
[1751972153680,28.0531,2565.3,2565.2,2.16518]
[1751972153971,0.77972,2564.9,2564.8,3.2078]
[1751972154177,0.77978,2564.7,2564.6,0.7041]
[1751972154371,27.37378,2564.7,2564.6,1.4009]
[1751972154575,27.37378,2564.7,2564.6,2.18071]
[1751972156380,27.37378,2564.7,2564.6,1.48391]
[1751972156576,27.37378,2564.7,2564.6,2.18071]
[1751972156777,28.05228,2564.7,2564.6,2.18071]
[1751972159082,60.2385,2565.2,2564.9,0.7797]
[1751972159281,0.77969,2565.0,2564.9,2.4804]
[1751972159578,56.15,2565.2,2565.1,0.77966]
[1751972159778,93.27935039,2565.2,2565.1,2.48036]
[1751972160975,57.66272039,2565.2,2565.1,2.48036]
[1751972161182,56.15,2565.2,2565.1,2.48036]
[1751972161383,82.745,2565.2,2565.1,2.48036]
[1751972161576,82.745,2565.2,2565.1,3.80506]
[1751972161882,82.745,2565.2,2565.1,2.10436]
[1751972162374,82.745,2565.2,2565.1,3.80506]
[1751972162581,83.52463,2565.2,2565.1,2.48036]
[1751972163283,82.745,2565.2,2565.1,2.48036]
[1751972163982,83.52463,2565.2,2565.1,2.48036]
[1751972164780,82.745,2565.2,2565.1,1.47646]
[1751972165182,83.52463,2565.2,2565.1,1.47646]
[1751972167777,0.77966,2565.1,2565.0,0.6724]
[1751972167982,1.45816,2565.1,2565.0,2.14889]
[1751972168183,0.77966,2565.1,2565.0,2.14889]
[1751972168383,1.45816,2565.1,2565.0,2.14889]
[1751972169285,1.45816,2565.1,2565.0,0.77969]
[1751972169584,2.86646,2565.1,2565.0,1.47649]
[1751972169880,2.86646,2565.1,2564.9,3.9875]
[1751972170086,0.77972,2564.9,2564.8,0.657]
[1751972170387,0.77978,2564.7,2564.6,3.98759]
[1751972170585,27.37278,2564.7,2564.6,5.34139]
[1751972170780,27.2715,2564.7,2564.6,4.68439]
[1751972170986,27.2715,2564.7,2564.6,5.68829]
[1751972171182,28.05128,2564.7,2564.6,4.68439]
[1751972171886,27.37278,2564.7,2564.6,3.98759]
[1751972172080,27.2715,2564.7,2564.6,5.68829]
[1751972172281,27.2715,2564.7,2564.6,3.98759]
[1751972172486,26.593,2564.7,2564.6,5.68829]
[1751972172784,27.37278,2564.7,2564.6,5.68829]
[1751972172985,28.05128,2564.7,2564.6,5.68829]
[1751972174187,28.05128,2564.7,2564.6,4.68439]
[1751972176888,28.05128,2564.7,2564.6,1.47659]
[1751972177284,27.2715,2564.7,2564.6,2.48049]
[1751972178683,28.05128,2564.7,2564.6,2.48049]
[1751972179085,28.05128,2564.7,2564.6,1.47659]
[1751972181787,0.77981,2564.6,2564.5,3.98762]
[1751972182091,0.77981,2564.6,2564.5,4.63732]
[1751972182287,0.77981,2564.6,2564.5,3.98762]
[1751972182784,0.77981,2564.6,2564.5,4.63732]
[1751972182980,1.45091,2564.6,2564.5,4.63732]
[1751972183992,1.45091,2564.6,2564.5,3.8575]
[1751972184585,0.77984,2564.5,2564.4,1.43686]
[1751972184887,31.03150142,2564.5,2564.4,1.3067]
[1751972185290,31.70260142,2564.5,2564.4,1.3067]
[1751972185586,31.70260142,2564.5,2564.4,0.657]
[1751972185785,0.7799,2564.3,2564.2,1.76341]
[1751972185992,27.3739,2564.3,2564.2,3.06021]
[1751972186691,28.045,2564.3,2564.2,3.06021]
[1751972188694,27.2651,2564.3,2564.2,3.06021]
[1751972189691,28.045,2564.3,2564.2,3.06021]
[1751972189891,27.2651,2564.3,2564.2,3.06021]
[1751972190793,27.2651,2564.3,2564.2,5.20105331]
[1751972190994,8.241,2564.5,2564.4,0.77987]
[1751972191194,34.836,2564.5,2564.4,1.42957]